fUST/lending_fUST_20240408
["ID","MTS","AMOUNT","RATE_DAILY","PERIOD"]
[321870377,1712578243969,-500.0,0.00064383,120]
[321870378,1712578243978,-500.0,0.00064383,120]
[321870379,1712578243993,-685.42,0.00064383,120]
[321870380,1712578244002,-863.24,0.00064383,120]
[321870381,1712578244011,-215.40494102,0.00064383,120]
[321870382,1712578244020,-861.5,0.00064383,2]
[321870383,1712578244031,-500.0,0.00064383,120]
[321870384,1712578244040,-500.0,0.00064383,120]
[321870385,1712578244049,-500.0,0.00064383,120]
[321870386,1712578244059,-500.0,0.00064383,120]
[321870387,1712578244070,-500.0,0.00064383,120]
[321870388,1712578244080,-500.0,0.00064383,120]
[321870389,1712578244090,-1107.24,0.00064383,120]
[321870390,1712578244101,-500.0,0.00064383,120]
[321870391,1712578244112,-500.0,0.00064383,120]
[321870392,1712578244123,-500.0,0.00064383,120]
[321870393,1712578244133,-500.0,0.00064383,120]
[321870394,1712578244148,-500.0,0.00064383,120]
[321870395,1712578244158,-500.0,0.00064383,120]
[321870396,1712578244170,-3388.22,0.00064383,90]
[321870397,1712578244181,-974.88,0.00064383,120]
[321870398,1712578244193,-613.56,0.00064383,21]
[321870399,1712578244205,-1919.63,0.00064383,120]
[321870400,1712578244215,-500.0,0.00064383,120]
[321870401,1712578244227,-500.0,0.00064383,120]
[321870402,1712578244248,-500.0,0.00064383,120]
[321870403,1712578244260,-556.98,0.00064383,120]
[321870404,1712578244271,-500.0,0.00064383,120]
[321870405,1712578244282,-500.0,0.00064383,120]
[321870406,1712578244293,-605.1,0.00064383,120]
[321870407,1712578244304,-500.0,0.00064383,120]
[321870408,1712578244314,-587.82,0.00064383,120]
[321870409,1712578244326,-500.0,0.00064383,120]
[321870410,1712578244337,-500.0,0.00064383,60]
[321870411,1712578244347,-500.0,0.00064383,120]
[321870412,1712578244358,-289.93012456,0.00064383,120]
[321870494,1712578267316,176.203743,0.00027397,2]
[321870495,1712578287257,693.00710774,0.000539,4]
[321870496,1712578301667,170.76429043,0.00027397,2]
[321870513,1712578817562,9838.33939156,0.0003,3]
[321870522,1712579042026,3234.36495485,0.0003,20]
[321870523,1712579060009,1415.12535331,0.0003,20]
[321870528,1712579151151,-1131.68428374,0.00027261,2]
[321870529,1712579151173,-524.59337771,0.00027262,2]
[321870530,1712579151193,-282.66267272,0.00027263,2]
[321870531,1712579151215,-300.0,0.00027268,2]
[321870532,1712579151235,-300.0,0.00027268,2]
[321870533,1712579151257,-154.87609912,0.0002727,2]
[321870534,1712579151278,-185.41664932,0.00027273,2]
[321870535,1712579151297,-187.09488097,0.00027277,2]
[321870539,1712579231094,-1382.24967093,0.00027275,2]
[321870540,1712579231115,-1028.78868364,0.00027275,2]
[321870541,1712579231136,-2924.30875299,0.00027276,2]
[321870542,1712579231164,-792.98335345,0.00027276,2]
[321870543,1712579231184,-1742.09109983,0.00027277,2]
[321870544,1712579231205,-160.14602343,0.00027294,2]
[321870545,1712579231226,-314.97345377,0.00027397,2]
[321870546,1712579231341,-154.87609912,0.00027397,2]
[321870547,1712579231362,-175.128509,0.00027397,2]
[321870548,1712579231382,-213.37840794,0.00032433,4]
[321870549,1712579231403,-175.128509,0.00033165,2]
[321870550,1712579231423,-370.7275732,0.00034139,4]
[321870552,1712579248109,923.22952845,0.00025,2]
[321870553,1712579270050,317.19402226,0.00025,2]
[321870554,1712579346115,-283.62862988,0.00033997,4]
[321870555,1712579346141,-1382.24967092,0.00033998,4]
[321870556,1712579346164,-704.8279547,0.00033999,4]
[321870557,1712579346189,-464.50545485,0.00034,4]
[321870558,1712579346218,-400.0,0.00034139,2]
[321870559,1712579346245,-250.0,0.00034139,2]
[321870560,1712579346268,-404.96675347,0.0003414,4]
[321870561,1712579346292,-387.53991805,0.0003414,4]
[321870562,1712579346315,-2450.53220334,0.0003414,2]
[321870563,1712579346338,-306.11929807,0.0003414,4]
[321870564,1712579346362,-218.10411422,0.0003414,4]
[321870565,1712579346388,-2564.79424828,0.00034141,4]
[321870568,1712579355102,-456.84902992,0.00034141,4]
[321870569,1712579355126,-160.14602343,0.00034144,2]
[321870570,1712579355152,-595.96032213,0.00035,2]
[321870571,1712579355176,-764.16848146,0.00035,4]
[321870572,1712579355199,-560.0,0.00037553,2]
[321870573,1712579355221,-175.128509,0.00038933,2]
[321870574,1712579355242,-534.186721,0.00040634,2]
[321870575,1712579355264,-160.14602343,0.00040994,2]
[321870576,1712579355285,-166.666666,0.00041096,2]
[321870577,1712579355305,-141.59450647,0.00042058,2]
[321870579,1712579367083,-25.07215953,0.00042058,2]
[321870580,1712579367103,-251.47012568,0.00042339,4]
[321870581,1712579367125,-150.00216539,0.0004234,30]
[321870582,1712579367147,-150.00216539,0.00042591,30]
[321870583,1712579367168,-166.666666,0.00043019,2]
[321870584,1712579367189,-166.666666,0.00043981,2]
[321870585,1712579367209,-150.00216539,0.00044296,30]
[321870586,1712579367229,-175.128509,0.00044701,2]
[321870587,1712579367250,-150.00216539,0.00044877,30]
[321870588,1712579367270,-166.666666,0.00044942,2]
[321870589,1712579367290,-150.00216539,0.00045267,30]
[321870590,1712579367310,-166.666666,0.00045904,2]
[321870591,1712579367330,-150.00216539,0.00046655,30]
[321870592,1712579367350,-150.00216539,0.00046718,30]
[321870593,1712579367371,-251.4890452,0.0004683,120]
[321870594,1712579367393,-160.0,0.00047,90]
[321870595,1712579367412,-184.92230403,0.00047498,4]
[321870596,1712579367432,-226.62548259,0.00047498,4]
[321870597,1712579367451,-250.56380297,0.00047499,4]
[321870598,1712579370418,165.156165,0.00027397,2]
[321870599,1712579370658,165.156165,0.00035225,2]
[321870600,1712579382774,260.0,0.00041781,120]
[321870601,1712579385957,300.0,0.00041781,120]
[321870603,1712579407833,632.7080141,0.00041258,15]
[321870639,1712579432769,-386.01217285,0.00038996,2]
[321870641,1712579432780,-21.0918549,0.00038996,2]
[321870643,1712579432789,-2.09931872,0.00041258,15]
[321870644,1712579432799,-165.156165,0.00043053,2]
[321870645,1712579432807,-407.10402775,0.00043996,2]
[321870646,1712579432816,-892.75413913,0.00047499,4]
[321870647,1712579432825,-14057.92352279,0.000475,2]
[321870648,1712579432835,-189.554576,0.00047563,2]
[321870649,1712579432845,-175.059556,0.00048782,2]
[321870650,1712579432854,-160.0,0.00048904,90]
[321870651,1712579432865,-407.10402775,0.00048996,2]
[321870652,1712579432874,-150.00216539,0.00049137,30]
[321870653,1712579432883,-150.00216539,0.00049551,30]
[321870654,1712579432892,-565.44343863,0.0005,7]
[321870655,1712579432902,-175.128509,0.00050469,2]
[321870656,1712579432912,-165.156165,0.00050881,2]
[321870657,1712579432920,-150.00216539,0.00052536,60]
[321870658,1712579432929,-150.00216539,0.00052875,60]
[321870659,1712579432938,-500.0,0.00053,2]
[321870660,1712579432949,-150.00216539,0.00053131,60]
[321870661,1712579432958,-150.00216539,0.00053186,60]
[321870662,1712579432967,-2668.33512931,0.0005333,120]
[321870663,1712579432975,-156.93341438,0.00053381,2]
[321870664,1712579432984,-500.0,0.00054,2]
[321870665,1712579432993,-500.0,0.00055,2]
[321870666,1712579433002,-150.00216539,0.00055009,120]
[321870667,1712579433011,-156.93341435,0.00055079,2]
[321870668,1712579433020,-150.00216539,0.00055629,120]
[321870669,1712579433029,-175.128509,0.00056236,2]
[321870670,1712579433038,-150.00216539,0.00056395,120]
[321870671,1712579433047,-156.93341435,0.00056777,2]
[321870672,1712579433056,-150.00216539,0.0005701,120]
[321870673,1712579433066,-150.00216539,0.00057383,120]
[321870674,1712579433075,-156.93341435,0.00058475,2]
[321870676,1712579433084,-165.156165,0.00058708,2]
[321870678,1712579433093,-3477.6795265,0.0006,2]
[321870680,1712579433102,-500.0,0.0006,2]
[321870681,1712579433111,-150.00216539,0.00060094,120]
[321870682,1712579433120,-156.93341435,0.00060173,2]
[321870684,1712579433130,-300.72306629,0.00060268,4]
[321870686,1712579433139,-179.49299627,0.00060269,12]
[321870688,1712579433149,-935.37988423,0.00060269,7]
[321870690,1712579433160,-6854.02678516,0.00060269,7]
[321870692,1712579433170,-469.36295751,0.00060269,7]
[321870694,1712579433179,-330.61774415,0.00060269,7]
[321870696,1712579433189,-156.54809607,0.00060269,7]
[321870698,1712579433201,-6339.87555597,0.0006027,7]
[321870700,1712579433210,-352.37171127,0.0006027,7]
[321870702,1712579433220,-500.0,0.00060271,120]
[321870704,1712579433230,-356.22133865,0.00060271,120]
[321870705,1712579433239,-500.0,0.00060271,120]
[321870706,1712579433249,-328.82478595,0.00060271,120]
[321870707,1712579433258,-3456.88796952,0.00060271,7]
[321870708,1712579433268,-339.07603963,0.00060271,7]
[321870709,1712579433277,-814.076411,0.00060271,7]
[321870710,1712579433287,-10161.94342414,0.00060272,7]
[321870723,1712579439009,-1558.879,0.00060272,7]
[321870724,1712579439020,-12694.75619997,0.00060272,7]
[321870725,1712579439029,-11837.74304898,0.00060273,61]
[321870726,1712579439038,-500.0,0.00060273,120]
[321870727,1712579439047,-500.0,0.00060273,120]
[321870728,1712579439055,-500.0,0.00060273,120]
[321870729,1712579439064,-500.0,0.00060273,120]
[321870730,1712579439073,-500.0,0.00060273,120]
[321870731,1712579439082,-500.0,0.00060273,120]
[321870732,1712579439092,-901.96,0.00060273,120]
[321870733,1712579439102,-611.15,0.00060273,120]
[321870734,1712579439111,-500.0,0.00060273,120]
[321870735,1712579439120,-930.64,0.00060273,2]
[321870736,1712579439130,-500.0,0.00060273,120]
[321870737,1712579439139,-500.0,0.00060273,120]
[321870738,1712579439149,-500.0,0.00060273,120]
[321870739,1712579439158,-500.0,0.00060273,120]
[321870740,1712579439168,-500.0,0.00060273,120]
[321870741,1712579439177,-500.0,0.00060273,120]
[321870742,1712579439186,-500.0,0.00060273,120]
[321870743,1712579439195,-500.0,0.00060273,120]
[321870744,1712579439290,-500.0,0.00060273,120]
[321870745,1712579439300,-500.0,0.00060273,120]
[321870746,1712579439309,-500.0,0.00060273,120]
[321870747,1712579439318,-500.0,0.00060273,120]
[321870748,1712579439327,-500.0,0.00060273,7]
[321870749,1712579439337,-500.0,0.00060273,120]
[321870750,1712579439346,-500.0,0.00060273,120]
[321870751,1712579439355,-500.0,0.00060273,120]
[321870752,1712579439364,-500.0,0.00060273,120]
[321870753,1712579439373,-500.0,0.00060273,120]
[321870754,1712579439382,-1459.81,0.00060273,120]
[321870755,1712579439391,-403.57235261,0.00060273,120]
[321870756,1712579439399,-500.0,0.00060273,120]
[321870757,1712579439409,-500.0,0.00060273,120]
[321870758,1712579439418,-503.64099157,0.00060273,120]
[321870759,1712579439427,-500.0,0.00060273,120]
[321870760,1712579439436,-569.06647598,0.00060273,120]
[321870761,1712579439446,-500.0,0.00060273,120]
[321870762,1712579439457,-500.0,0.00060273,120]
[321870763,1712579439466,-500.0,0.00060273,120]
[321870764,1712579439475,-536.56095693,0.00060273,120]
[321870765,1712579439484,-530.74470927,0.00060273,120]
[321870766,1712579439495,-587.56953402,0.00060273,120]
[321870767,1712579439509,-500.61388132,0.00060273,120]
[321870768,1712579439519,-500.0,0.00060273,120]
[321870769,1712579439528,-500.0,0.00060273,120]
[321870770,1712579439537,-500.0,0.00060273,120]
[321870771,1712579439546,-677.04,0.00060273,120]
[321870772,1712579439555,-500.0,0.00060273,120]
[321870773,1712579439565,-500.0,0.00060273,120]
[321870774,1712579439575,-328.19783909,0.00060273,120]
[321870775,1712579439584,-500.0,0.00060273,120]
[321870776,1712579439593,-507.21569682,0.00060273,120]
[321870777,1712579439602,-500.0,0.00060273,120]
[321870778,1712579439611,-500.0,0.00060273,120]
[321870779,1712579439620,-500.0,0.00060273,120]
[321870780,1712579439630,-500.0,0.00060273,120]
[321870781,1712579439639,-500.0,0.00060273,120]
[321870782,1712579439648,-500.0,0.00060273,120]
[321870783,1712579439657,-500.0,0.00060273,120]
[321870784,1712579439666,-601.34049551,0.00060273,120]
[321870785,1712579439675,-500.0,0.00060273,120]
[321870786,1712579439684,-584.243083,0.00060273,120]
[321870787,1712579439693,-500.0,0.00060273,120]
[321870788,1712579439704,-561.57823212,0.00060273,120]
[321870789,1712579439713,-500.0,0.00060273,120]
[321870790,1712579439722,-502.5901833,0.00060273,120]
[321870791,1712579439731,-500.0,0.00060273,120]
[321870792,1712579439741,-500.0,0.00060273,120]
[321870793,1712579439750,-500.0,0.00060273,120]
[321870794,1712579439759,-500.0,0.00060273,120]
[321870795,1712579439768,-500.0,0.00060273,120]
[321870796,1712579439778,-500.0,0.00060273,120]
[321870797,1712579439789,-500.0,0.00060273,120]
[321870798,1712579439799,-500.0,0.00060273,120]
[321870799,1712579439808,-500.0,0.00060273,120]
[321870800,1712579439817,-500.0,0.00060273,120]
[321870801,1712579439827,-500.0,0.00060273,120]
[321870802,1712579439836,-500.0,0.00060273,120]
[321870803,1712579439845,-500.0,0.00060273,120]
[321870804,1712579439855,-688.94,0.00060273,120]
[321870805,1712579439864,-500.0,0.00060273,120]
[321870806,1712579439876,-500.0,0.00060273,120]
[321870808,1712579439885,-500.0,0.00060273,120]
[321870809,1712579439894,-500.0,0.00060273,120]
[321870810,1712579439903,-560.87,0.00060273,120]
[321870811,1712579439922,-500.0,0.00060273,120]
[321870812,1712579439931,-500.0,0.00060273,120]
[321870813,1712579439940,-500.0,0.00060273,120]
[321870814,1712579439952,-500.0,0.00060273,120]
[321870815,1712579439962,-248.89395911,0.00060273,120]
[321870816,1712579439975,-251.10604089,0.00060273,120]
[321870817,1712579439984,-500.0,0.00060273,120]
[321870818,1712579439994,-500.0,0.00060273,120]
[321870820,1712579440003,-500.0,0.00060273,120]
[321870821,1712579440013,-500.0,0.00060273,120]
[321870822,1712579440022,-500.0,0.00060273,120]
[321870823,1712579440031,-500.0,0.00060273,120]
[321870824,1712579440040,-500.0,0.00060273,120]
[321870825,1712579440049,-500.0,0.00060273,120]
[321870826,1712579440059,-500.0,0.00060273,120]
[321870827,1712579440067,-500.0,0.00060273,120]
[321870828,1712579440077,-500.0,0.00060273,120]
[321870829,1712579440086,-500.0,0.00060273,120]
[321870830,1712579440095,-500.0,0.00060273,120]
[321870831,1712579440104,-372.7191899,0.00060273,120]
[321870832,1712579440114,-553.55,0.00060273,120]
[321870833,1712579440123,-500.0,0.00060273,120]
[321870835,1712579440132,-500.0,0.00060273,120]
[321870837,1712579440142,-500.0,0.00060273,120]
[321870839,1712579440151,-500.0,0.00060273,120]
[321870841,1712579440162,-500.0,0.00060273,120]
[321870843,1712579440171,-500.0,0.00060273,120]
[321870845,1712579440180,-500.0,0.00060273,120]
[321870847,1712579440189,-500.0,0.00060273,120]
[321870848,1712579440198,-500.0,0.00060273,120]
[321870850,1712579440209,-500.0,0.00060273,120]
[321870852,1712579440219,-500.0,0.00060273,120]
[321870854,1712579440229,-500.0,0.00060273,120]
[321870856,1712579440238,-500.0,0.00060273,120]
[321870858,1712579440247,-500.0,0.00060273,120]
[321870860,1712579440257,-500.0,0.00060273,120]
[321870862,1712579440266,-500.0,0.00060273,120]
[321870864,1712579440276,-500.0,0.00060273,120]
[321870866,1712579440285,-1032.36,0.00060273,120]
[321870868,1712579440295,-500.0,0.00060273,120]
[321870870,1712579440304,-500.0,0.00060273,120]
[321870872,1712579440314,-500.0,0.00060273,120]
[321870873,1712579440323,-300.51293791,0.00060273,120]
[321870875,1712579440333,-500.0,0.00060273,120]
[321870876,1712579440341,-1991.48,0.00060273,120]
[321870877,1712579440351,-500.0,0.00060273,120]
[321870878,1712579440360,-500.0,0.00060273,120]
[321870879,1712579440369,-500.0,0.00060273,120]
[321870880,1712579440378,-1127.08,0.00060273,120]
[321870881,1712579440387,-500.0,0.00060273,120]
[321870882,1712579440396,-1164.4,0.00060273,120]
[321870883,1712579440405,-500.0,0.00060273,120]
[321870884,1712579440414,-500.0,0.00060273,120]
[321870885,1712579440424,-500.0,0.00060273,120]
[321870886,1712579440433,-500.0,0.00060273,120]
[321870887,1712579440442,-500.0,0.00060273,120]
[321870888,1712579440453,-500.0,0.00060273,120]
[321870890,1712579440462,-500.0,0.00060273,120]
[321870892,1712579440471,-1273.6,0.00060273,120]
[321870893,1712579440480,-2701.88,0.00060273,120]
[321870894,1712579440490,-500.0,0.00060273,120]
[321870895,1712579440499,-3410.77,0.00060273,120]
[321870896,1712579440509,-500.0,0.00060273,120]
[321870897,1712579440518,-500.0,0.00060273,120]
[321870898,1712579440527,-1799.61,0.00060273,120]
[321870899,1712579440537,-500.0,0.00060273,120]
[321870900,1712579440547,-500.0,0.00060273,120]
[321870901,1712579440556,-500.0,0.00060273,120]
[321870902,1712579440565,-1060.38,0.00060273,120]
[321870903,1712579440574,-632.62,0.00060273,120]
[321870904,1712579440583,-500.0,0.00060273,120]
[321870905,1712579440591,-531.24,0.00060273,120]
[321870906,1712579440601,-500.0,0.00060273,120]
[321870907,1712579440610,-635.36,0.00060273,120]
[321870908,1712579440619,-500.0,0.00060273,120]
[321870909,1712579440628,-500.0,0.00060273,120]
[321870910,1712579440637,-500.0,0.00060273,120]
[321870911,1712579440646,-500.0,0.00060273,120]
[321870912,1712579440655,-2059.69,0.00060273,120]
[321870913,1712579440665,-500.0,0.00060273,120]
[321870914,1712579440674,-4014.4,0.00060273,90]
[321870915,1712579440683,-500.0,0.00060273,120]
[321870916,1712579440693,-500.0,0.00060273,120]
[321870917,1712579440704,-500.0,0.00060273,120]
[321870918,1712579440713,-500.0,0.00060273,120]
[321870919,1712579440723,-500.0,0.00060273,120]
[321870920,1712579440732,-500.0,0.00060273,120]
[321870921,1712579440741,-500.0,0.00060273,120]
[321870922,1712579440750,-500.0,0.00060273,120]
[321870923,1712579440759,-500.0,0.00060273,120]
[321870924,1712579440768,-608.61,0.00060273,21]
[321870925,1712579440778,-500.0,0.00060273,120]
[321870927,1712579440787,-500.0,0.00060273,120]
[321870928,1712579440797,-500.0,0.00060273,120]
[321870929,1712579440806,-500.0,0.00060273,120]
[321870930,1712579440814,-500.0,0.00060273,120]
[321870931,1712579440823,-519.7175386,0.00060273,120]
[321870933,1712579440832,-500.0,0.00060273,120]
[321870934,1712579440841,-565.62,0.00060273,120]
[321870936,1712579440851,-500.0,0.00060273,120]
[321870938,1712579440860,-500.0,0.00060273,120]
[321870939,1712579440870,-741.94,0.00060273,120]
[321870941,1712579440880,-500.0,0.00060273,120]
[321870943,1712579440890,-500.0,0.00060273,120]
[321870944,1712579440901,-500.0,0.00060273,60]
[321870945,1712579440910,-500.0,0.00060273,120]
[321870946,1712579440919,-500.0,0.00060273,120]
[321870947,1712579440929,-500.0,0.00060273,120]
[321870948,1712579440939,-555.87,0.00060273,120]
[321870949,1712579440948,-500.0,0.00060273,120]
[321870950,1712579440958,-500.0,0.00060273,120]
[321870951,1712579440967,-500.0,0.00060273,120]
[321870952,1712579440977,-516.08,0.00060273,120]
[321870953,1712579440986,-500.0,0.00060273,120]
[321870954,1712579440995,-500.0,0.00060273,120]
[321870955,1712579441004,-500.0,0.00060273,120]
[321870956,1712579441013,-697.23,0.00060273,120]
[321870957,1712579441022,-2383.77,0.00060273,120]
[321870958,1712579441031,-323.42608529,0.00060273,120]
[321870959,1712579441040,-1246.23,0.00060273,120]
[321870960,1712579441049,-500.0,0.00060273,120]
[321870961,1712579441059,-534.186721,0.00060951,30]
[321870962,1712579441068,-548.34971335,0.00060995,120]
[321870963,1712579441077,-500.0,0.00061094,120]
[321870964,1712579441086,-500.0,0.00061095,120]
[321870965,1712579441096,-500.0,0.00061095,120]
[321870966,1712579441105,-500.0,0.00061095,120]
[321870967,1712579441114,-901.96,0.00061095,120]
[321870968,1712579441184,-500.0,0.00061095,120]
[321870969,1712579441203,-930.64,0.00061095,2]
[321870970,1712579441213,-500.0,0.00061095,120]
[321870971,1712579441222,-500.0,0.00061095,120]
[321870972,1712579441231,-1459.81,0.00061095,120]
[321870973,1712579441240,-500.0,0.00061095,120]
[321870974,1712579441249,-500.0,0.00061095,120]
[321870975,1712579441258,-677.04,0.00061095,120]
[321870976,1712579441268,-500.0,0.00061095,120]
[321870977,1712579441277,-500.0,0.00061095,120]
[321870978,1712579441286,-558.38648161,0.00061095,120]
[321870979,1712579441295,-500.0,0.00061095,120]
[321870980,1712579441304,-500.0,0.00061095,120]
[321870981,1712579441313,-500.0,0.00061095,120]
[321870982,1712579441322,-359.66082968,0.00061095,120]
[321870983,1712579441331,-500.0,0.00061095,120]
[321870984,1712579441341,-688.94,0.00061095,120]
[321870985,1712579441350,-500.0,0.00061095,120]
[321870986,1712579441358,-560.87,0.00061095,120]
[321870987,1712579441368,-500.0,0.00061095,120]
[321870988,1712579441377,-500.0,0.00061095,120]
[321870989,1712579441386,-500.0,0.00061095,120]
[321870990,1712579441395,-500.0,0.00061095,120]
[321870991,1712579441404,-500.0,0.00061095,120]
[321870992,1712579441414,-553.55,0.00061095,120]
[321870993,1712579441422,-500.0,0.00061095,120]
[321870994,1712579441432,-500.0,0.00061095,120]
[321870995,1712579441441,-500.0,0.00061095,120]
[321870996,1712579441451,-500.0,0.00061095,120]
[321870997,1712579441460,-500.0,0.00061095,120]
[321870998,1712579441470,-500.0,0.00061095,120]
[321870999,1712579441480,-500.0,0.00061095,120]
[321871000,1712579441489,-500.0,0.00061095,120]
[321871001,1712579441498,-1032.36,0.00061095,120]
[321871002,1712579441506,-579.6055703,0.00061095,120]
[321871003,1712579441515,-1991.48,0.00061095,120]
[321871004,1712579441525,-500.0,0.00061095,120]
[321871005,1712579441533,-1127.08,0.00061095,120]
[321871006,1712579441543,-500.0,0.00061095,120]
[321871007,1712579441553,-1164.4,0.00061095,120]
[321871008,1712579441562,-500.0,0.00061095,120]
[321871009,1712579441571,-500.0,0.00061095,120]
[321871010,1712579441580,-500.0,0.00061095,120]
[321871011,1712579441589,-500.0,0.00061095,120]
[321871012,1712579441599,-500.0,0.00061095,120]
[321871013,1712579441608,-1273.6,0.00061095,120]
[321871014,1712579441617,-2701.88,0.00061095,120]
[321871015,1712579441626,-3410.77,0.00061095,120]
[321871016,1712579441636,-500.0,0.00061095,120]
[321871017,1712579441645,-500.0,0.00061095,120]
[321871018,1712579441654,-1799.61,0.00061095,120]
[321871019,1712579441664,-500.0,0.00061095,120]
[321871020,1712579441673,-1060.38,0.00061095,120]
[321871021,1712579441682,-632.62,0.00061095,120]
[321871022,1712579441692,-500.0,0.00061095,120]
[321871023,1712579441701,-531.24,0.00061095,120]
[321871024,1712579441710,-500.0,0.00061095,120]
[321871025,1712579441719,-500.0,0.00061095,120]
[321871026,1712579441728,-635.36,0.00061095,120]
[321871027,1712579441737,-500.0,0.00061095,120]
[321871028,1712579441747,-500.0,0.00061095,120]
[321871029,1712579441756,-2059.69,0.00061095,120]
[321871030,1712579441765,-4014.4,0.00061095,90]
[321871031,1712579441775,-500.0,0.00061095,120]
[321871032,1712579441784,-500.0,0.00061095,120]
[321871033,1712579441793,-580.33819163,0.00061095,120]
[321871034,1712579441803,-500.0,0.00061095,120]
[321871035,1712579441812,-608.61,0.00061095,21]
[321871036,1712579441821,-500.0,0.00061095,120]
[321871037,1712579441830,-457.17,0.00061095,120]
[321871038,1712579441839,-500.0,0.00061095,120]
[321871039,1712579441849,-500.0,0.00061095,120]
[321871040,1712579441858,-500.0,0.00061095,120]
[321871041,1712579441869,-565.62,0.00061095,120]
[321871042,1712579441880,-500.0,0.00061095,120]
[321871043,1712579441889,-741.94,0.00061095,120]
[321871044,1712579441898,-500.0,0.00061095,120]
[321871045,1712579441906,-504.37662883,0.00061095,120]
[321871046,1712579441917,-500.0,0.00061095,60]
[321871047,1712579441925,-500.0,0.00061095,120]
[321871048,1712579441934,-500.0,0.00061095,120]
[321871049,1712579441943,-555.87,0.00061095,120]
[321871050,1712579441954,-500.0,0.00061095,120]
[321871051,1712579441963,-500.0,0.00061095,120]
[321871052,1712579441972,-500.0,0.00061095,120]
[321871053,1712579441981,-516.08,0.00061095,120]
[321871054,1712579441990,-500.0,0.00061095,120]
[321871055,1712579441999,-500.0,0.00061095,120]
[321871056,1712579442008,-500.0,0.00061095,120]
[321871057,1712579442016,-697.23,0.00061095,120]
[321871058,1712579442025,-1177.97286265,0.00061095,120]
[321871059,1712579442040,-1205.79713735,0.00061095,120]
[321871060,1712579442049,-1246.23,0.00061095,120]
[321871061,1712579442058,-1000.0,0.000618,60]
[321871062,1712579442068,-175.0200576,0.00061916,7]
[321871063,1712579442077,-330.20451992,0.00061917,120]
[321871064,1712579442085,-256.49438441,0.00061917,120]
[321871065,1712579442094,-500.0,0.00061917,120]
[321871066,1712579442103,-901.96,0.00061917,120]
[321871067,1712579442113,-500.0,0.00061917,120]
[321871068,1712579442122,-930.64,0.00061917,2]
[321871069,1712579442131,-500.0,0.00061917,120]
[321871070,1712579442140,-500.0,0.00061917,120]
[321871071,1712579442149,-1459.81,0.00061917,120]
[321871072,1712579442159,-500.0,0.00061917,120]
[321871073,1712579442169,-500.0,0.00061917,120]
[321871074,1712579442178,-677.04,0.00061917,120]
[321871075,1712579442187,-500.0,0.00061917,120]
[321871076,1712579442196,-272.1051629,0.00061917,120]
[321871077,1712579442209,-500.0,0.00061917,120]
[321871078,1712579442218,-500.0,0.00061917,120]
[321871079,1712579442227,-500.0,0.00061917,120]
[321871080,1712579442238,-500.0,0.00061917,120]
[321871081,1712579442248,-688.94,0.00061917,120]
[321871082,1712579442257,-560.87,0.00061917,120]
[321871083,1712579442267,-500.0,0.00061917,120]
[321871084,1712579442276,-500.0,0.00061917,120]
[321871085,1712579442286,-424.8086945,0.00061917,120]
[321871086,1712579442295,-500.0,0.00061917,120]